Cogmind - Beta 13 @@@ ROGUE MODE // 2024.04.22 @ 02:49:00 Player: Gabe+Kate4EVR Result: Self-destructed Performance ------------- Evolutions (2) 1000 Regions Visited (3) 600 Robots Destroyed (19) 95 Value Destroyed (539) 539 Prototype IDs (5) 100 Alien Tech Used (0) 0 Bonus (0) 0 TOTAL SCORE: 2334 Bonus ------- None Cogmind --------- Core Integrity 429/550 Matter 125/300 Energy 370/380 System Corruption 1% Temperature Cool (5) Movement Treading (160) Location -8/Materials Parts ------- > --- POWER (2) -------- Nuclear Core Nuclear Core > --- PROPULSION (5) --- Light Treads Light Treads Light Treads Light Treads Light Treads > --- UTILITY (2) ------ Large Storage Unit Improved Signal Interpreter > --- WEAPON (2) ------- Assault Rifle Heavy Assault Rifle > --- INVENTORY (15) --- Light Deuterium Engine Nuclear Core Nuclear Core Light Treads Improved VTOL Module Heat Sink Compact Matter Pod (0) Hardened Medium Armor Plating Beam Rifle Light Assault Rifle Heavy Assault Rifle Improved Datajack Peak State ------------ > --- POWER ------------ Nuclear Core Nuclear Core > --- PROPULSION ------- Light Treads Light Treads Light Treads Light Treads Light Treads > --- UTILITY ---------- Large Storage Unit Advanced Targeting Computer > --- WEAPON ----------- Assault Rifle Heavy Assault Rifle > --- INVENTORY -------- Nuclear Core Nuclear Core Improved VTOL Module Heat Sink Compact Matter Pod Hardened Medium Armor Plating Beam Rifle Light Assault Rifle Heavy Assault Rifle [Rating: 20] Favorites ----------- Power Light Ion Engine Engine Light Ion Engine Power Core Nuclear Core Propulsion Light Treads Treads Light Treads Leg Aluminum Leg Hover Unit Improved Hover Unit Flight Unit Flight Unit Utility Small Storage Unit Storage Small Storage Unit Processor Signal Interpreter Hackware Hacking Suite Weapon Light Assault Rifle Energy Gun Beam Rifle Ballistic Gun Light Assault Rifle Build | -11 -10 -9 -8 ------- Run | Yrd Mat Mat Mat Slots Evolved 4 | . . 2 2 Power 1 | . . . 1 Propulsion 3 | . . 2 1 Utility . | . . . . Weapon . | . . . . Parts Attached 48 | 8 3 14 23 Power 9 | 1 2 . 6 Engine 5 | 1 2 . 2 Core 4 | . . . 4 Reactor . | . . . . Propulsion 24 | 4 . 11 9 Treads 10 | 2 . . 8 Leg 6 | 2 . 4 . Wheel . | . . . . Hover 3 | . . 3 . Flight 5 | . . 4 1 Utility 6 | 1 1 . 4 Device . | . . . . Storage 2 | 1 . . 1 Processor 3 | . 1 . 2 Hackware 1 | . . . 1 Protection . | . . . . Artifact . | . . . . Weapon 9 | 2 . 3 4 Energy Gun 1 | . . 1 . Energy Cannon . | . . . . Ballistic Gun 8 | 2 . 2 4 Ballistic Cannon . | . . . . Launcher . | . . . . Special Weapon . | . . . . Impact Weapon . | . . . . Slashing Weapon . | . . . . Piercing Weapon . | . . . . Special Melee Weapon . | . . . . Unidentified Prototypes 1 | . . . 1 Parts Lost 7 | . . . 7 Power 3 | . . . 3 Propulsion 3 | . . . 3 Utility . | . . . . Weapon 1 | . . . 1 Highest Loss Streak 3 | . . . 3 To Critical Strikes . | . . . . Average Slot Usage (%) 87 | . 90 93 83 Engine 7 | . 14 11 3 Core 4 | . . . 7 Treads 25 | . 28 3 31 Leg 5 | . . 27 . Flight 6 | . . 5 9 Storage 10 | . 14 11 9 Processor 6 | . 5 11 4 Hackware 2 | . . . 4 Ballistic Gun 17 | . 28 18 13 Naked Turns . | . . . . Heaviest Build 39 | 10 12 16 39 Greatest Support 100 | 40 40 43 100 Greatest Overweight (x) 3 | . . 3 1 Average Overweight (x) . | . . . . Largest Inventory Capacity 15 | 8 8 8 15 Average Capacity 8 | 7 8 8 9 Most Carried 12 | 3 7 8 12 Average Carried 6 | 1 3 6 7 Final Capacity 15 | 8 8 8 15 Final Carried 12 | 3 7 8 12 Class Distribution -------------------- 50% | Mutant 43% | Scavenger-Mutant 5% | Sprinter Dominant Class ---------------- Mutant | -10/Materials Mutant | -9/Materials Scavenger-Mutant | -8/Materials Resources | -11 -10 -9 -8 ----------- Run | Yrd Mat Mat Mat Matter Collected 852 | 191 81 118 462 Remotely . | . . . . Salvage Created 722 | . 81 50 591 Parts 46 | . 7 5 34 Haulers Intercepted 2 | . . . 2 Recyclers Shooed 4 | . 1 2 1 Parts Field Recycled . | . . . . Retrieved Matter . | . . . . Parts Self-Destructed . | . . . . Prevented . | . . . . Kills | -11 -10 -9 -8 ------- Run | Yrd Mat Mat Mat Combat Hostiles Destroyed 14 | . 5 1 8 Melee 1 | . . . 1 Guns 13 | . 5 1 7 Classes Destroyed 8 | . 2 1 5 Worker 1 | . . . 1 Builder 1 | . . . 1 Hauler 2 | . . . 2 Watcher 1 | . . . 1 Swarmer 3 | . 3 . . Grunt 7 | . 2 . 5 Brawler 1 | . . . 1 Sentry 3 | . . 1 2 Best Kill Streak 3 | . 2 1 3 Combat Bots Only 3 | . 2 1 3 Max Kills in Single Turn 1 | . 1 1 1 Gunslinging . | . . . . Exploded . | . . . . Melee 1 | . . . 1 Uniques/NPCs Destroyed . | . . . . Combat | -11 -10 -9 -8 -------- Run | Yrd Mat Mat Mat Hostile Shots Fired 110 | . 26 12 72 Missed 28 | . 6 5 17 Damage Taken 1132 | . 174 91 867 Core 167 | . 46 . 121 Absorbed by Shields . | . . . . Regen/Repaired (Parts) 10 | . . 10 . Core Remaining (%) 93 | 100 81 100 . Volleys Fired 102 | . 17 6 79 Largest 2 | . 2 2 2 Hottest 79 | . 40 79 79 Shots Fired 163 | . 34 12 117 Gun 163 | . 34 12 117 Cannon . | . . . . Launcher . | . . . . Special . | . . . . Kinetic 158 | . 34 11 113 Thermal 5 | . . 1 4 Explosive . | . . . . Electromagnetic . | . . . . Robot Hit Streak 14 | . 10 14 9 Robot Miss Streak 4 | . 3 1 4 Penetration Max . | . . . . Secondary Targets . | . . . . Shots Hit Robots 98 | . 19 9 70 Core Hits 40 | . 8 5 27 Critical Kills . | . . . . Critical Parts Destroyed 1 | . . . 1 Critical Strikes 1 | . . . 1 Destroy 1 | . . . 1 Melee Attacks . | . . . . Impact . | . . . . Slashing . | . . . . Piercing . | . . . . Sneak Attacks . | . . . . Combat Hostiles . | . . . . Follow-up Attacks . | . . . . Damage Inflicted 1346 | . 192 79 1075 Guns 1342 | . 190 79 1073 Cannons . | . . . . Explosions . | . . . . Melee . | . . . . Ramming 4 | . 2 . 2 Kinetic 1327 | . 190 79 1058 Thermal 15 | . . . 15 Explosive . | . . . . Electromagnetic . | . . . . Impact . | . . . . Slashing . | . . . . Piercing . | . . . . Highest Corruption 1 | . . . 1 Average Corruption 1 | . . . 1 Corruption Purged . | . . . . Corruption Blocked . | . . . . Effects 3 | . . . 3 Message Errors 2 | . . . 2 Energy Discharges 1 | . . . 1 Overload Shots . | . . . . Overflow Damage . | . . . . Projectiles . | . . . . Explosions . | . . . . Melee . | . . . . Knockbacks . | . . . . Impact . | . . . . Kinetic . | . . . . Secondary . | . . . . Self-Inflicted Damage . | . . . . Shots . | . . . . Rammed 2 | . 2 . . Targets Rammed 3 | . 2 . 1 Kicked . | . . . . Crushed 1 | . . . 1 Highest Temperature 106 | . 12 24 106 Average Temperature 29 | . 6 9 46 Received Heat Transfer 552 | . 42 51 459 Siege Activations . | . . . . Robots Corrupted . | . . . . Combat Hostiles . | . . . . Parts Fried . | . . . . Impact Corruptions . | . . . . Robots Melted . | . . . . Combat Hostiles . | . . . . Parts Melted . | . . . . Heat Transferred 37 | . . . 37 Parts Sabotaged . | . . . . Parts Stolen . | . . . . Parts Stripped . | . . . . Power Chain Reactions . | . . . . Alert | -11 -10 -9 -8 ------- Run | Yrd Mat Mat Mat Peak Influence 228 | . 150 135 228 Initial 63 | . . 63 56 Average 80 | . 74 91 91 Maximum Alert Level 1 | . . . 1 Low Security (%) 91 | 100 100 100 84 Level 1 8 | . . . 15 Level 2 . | . . . . Level 3 . | . . . . Level 4 . | . . . . Level 5 . | . . . . High Security . | . . . . Max Security . | . . . . Squads Dispatched 2 | . 1 . 1 Investigation . | . . . . Extermination . | . . . . Reinforcement 2 | . 1 . 1 Assault . | . . . . Garrison . | . . . . Intercept . | . . . . Searches Triggered . | . . . . Construction Impeded . | . . . . Haulers Reinforced . | . . . . Active Scanning Responses . | . . . . Cargo Convoy Interrupts . | . . . . Stealth | -11 -10 -9 -8 --------- Run | Yrd Mat Mat Mat Distress Signals 1 | . . . 1 Communications Jammed . | . . . . Distress Signals . | . . . . Times Spotted 29 | . 6 5 18 Peak Tracking Total 5 | . 3 5 4 Tactical Retreats 4 | . 1 1 2 Traps | -11 -10 -9 -8 ------- Run | Yrd Mat Mat Mat Traps Triggered 1 | . . . 1 Indirectly . | . . . . Trap Hack Attempts . | . . . . Triggered . | . . . . Disarmed . | . . . . Reprogrammed . | . . . . Reused . | . . . . Traps Extracted . | . . . . Installed . | . . . . Triggered . | . . . . Machines | -11 -10 -9 -8 ---------- Run | Yrd Mat Mat Mat Machines Disabled . | . . . . Max in Single Turn . | . . . . Machines Repaired . | . . . . Machines Dismantled . | . . . . Machines Sabotaged . | . . . . Overloaded Fab Kills . | . . . . Hacking | -11 -10 -9 -8 --------- Run | Yrd Mat Mat Mat Machines Accessed 5 | . 1 3 1 Terminals 3 | . . 2 1 Fabricators . | . . . . Repair Stations 1 | . . 1 . Recycling Units 1 | . 1 . . Scanalyzers . | . . . . Garrison Access . | . . . . Total Hacks 13 | . 1 11 1 Successful 6 | . 1 4 1 Failed 7 | . . 7 . Catastrophic 1 | . . 1 . Database Lockouts . | . . . . Manual 7 | . . 7 . Terminals 10 | . . 9 1 Fabricators . | . . . . Repair Stations 2 | . . 2 . Recycling Units 1 | . 1 . . Scanalyzers . | . . . . Garrison Access . | . . . . Terminal Hacks 3 | . . 2 1 Prototype ID Bank 2 | . . 2 . Alert Level 1 | . . . 1 Fabricator Hacks . | . . . . Repair Station Hacks 2 | . . 2 . Scan Component 1 | . . 1 . Repair 1 | . . 1 . Recycling Unit Hacks 1 | . 1 . . Report Inventory 1 | . 1 . . Scanalyzer . | . . . . Garrison Access Hacks . | . . . . Unauthorized Hacks . | . . . . Terminals . | . . . . Fabricators . | . . . . Repair Stations . | . . . . Recycling Units . | . . . . Scanalyzers . | . . . . Garrison Access . | . . . . Data Cores Recovered . | . . . . Used . | . . . . Hacking Detections 2 | . . 2 . Full Trace Events . | . . . . Feedback Events . | . . . . Feedback Blocked . | . . . . Robot Schematics Acquired . | . . . . Robots Built . | . . . . Authchips . | . . . . Time . | . . . . Total Robot Build Rating . | . . . . Part Schematics Acquired . | . . . . Parts Built . | . . . . Authchips . | . . . . Time . | . . . . Total Part Build Rating . | . . . . Parts Repaired 1 | . . 1 . Time 26 | . . 26 . Parts Recycled . | . . . . Recycled Matter . | . . . . Retrieved Matter . | . . . . Retrieved Components . | . . . . Parts Scanalyzed . | . . . . Part Schematics Acquired . | . . . . Parts Damaged . | . . . . Bothacking | -11 -10 -9 -8 ------------ Run | Yrd Mat Mat Mat Used RIF Installer . | . . . . Robots Hacked . | . . . . Non-combat . | . . . . Combat . | . . . . Robot Hacks Applied . | . . . . Relay Couplers Released . | . . . . Fabnet Peak Effective % . | . . . . Robots Rewired . | . . . . Allies Hacked . | . . . . Hacks Repelled . | . . . . Allies | -11 -10 -9 -8 -------- Run | Yrd Mat Mat Mat Total Allies . | . . . . Largest Group . | . . . . Highest-Rated Group . | . . . . Highest-Rated Ally . | . . . . Total Orders . | . . . . Ally Attacks . | . . . . Total Damage . | . . . . Kills . | . . . . Allies Corrupted . | . . . . Allies Melted . | . . . . Intel | -11 -10 -9 -8 ------- Run | Yrd Mat Mat Mat Robot Analysis Total . | . . . . Derelict Logs Recovered . | . . . . Drone Launches . | . . . . Drone Recoveries . | . . . . Exploration | -11 -10 -9 -8 ------------- Run | Yrd Mat Mat Mat Turns Passed 1652 | 133 347 283 889 Spaces Moved 906 | 89 153 225 439 Core 8 | 8 . . . Treads 565 | 39 153 28 345 Legs 151 | 42 . 109 . Wheels . | . . . . Hover 8 | . . 8 . Flight 174 | . . 80 94 Fastest Speed 31 | 50 160 31 31 Average Speed 129 | 131 160 93 136 Slowest Speed 280 | 160 160 280 160 Overloaded Moves . | . . . . Propulsion Burnouts . | . . . . Robots Hopped 1 | . . 1 . Cave-ins Triggered . | . . . . Exploration Rate (%) 18 | 5 22 19 26 Regions Visited 3 Branch Regions . Pre-discovered Areas . | . . . . Known Exits Taken 2 | . 1 1 . Unknown Exits Taken 1 | 1 . . . Scrap Searched . | . . . . Spaces Dug . | . . . . Terrain Destroyed . | . . . . Melee . | . . . . Projectile . | . . . . AOE . | . . . . Terrain Rammed . | . . . . Walls Destroyed . | . . . . Machines Disabled . | . . . . Actions | -11 -10 -9 -8 --------- Run | Yrd Mat Mat Mat Total 1223 | 102 225 285 611 Wait 131 | 3 49 30 49 Move 900 | 88 152 222 438 Hop 1 | . . 1 . Pick Up 11 | 1 2 1 7 Fast Attach 28 | 8 1 9 10 Attach 10 | . . 3 7 Detach 13 | 2 . 3 8 Swap 10 | . 2 2 6 Drop 14 | . . 8 6 Fire 102 | . 17 6 79 Melee . | . . . . Ram . | . . . . Kick . | . . . . Crush 3 | . 2 . 1 Escape Stasis . | . . . . Rewire . | . . . . Trap . | . . . . Miscellaneous . | . . . . Route ------- -11/Scrapyard -10/Materials -9/Materials -8/Materials (discovered 1 exit: *Fac) History --------- Turn | Location | Event 7 | -11/Scrapyard | Discovered new exit (range 15) 134 | -11/Scrapyard | Entered Materials 306 | -10/Materials | Build established: Mutant 476 | -10/Materials | Discovered new exit (range 4) 479 | -10/Materials | Identified exit to Materials 481 | -10/Materials | Entered another Materials area 481 | -9/Materials | Evolved 2 slots: Propulsion x2 621 | -9/Materials | Repaired Heat Sink 759 | -9/Materials | Discovered new exit (range 16) 764 | -9/Materials | Identified exit to Materials 764 | -9/Materials | Entered another Materials area 764 | -8/Materials | Evolved 2 slots: Power x1, Propulsion x1 835 | -8/Materials | Lost 3 parts (1p2n) 1313 | -8/Materials | Build established: Scavenger-Mutant 1375 | -8/Materials | Discovered new exit (range 15) 1652 | -8/Materials | Identified exit to Factory 1653 | -8/Materials | Self-destructed Last Messages --------------- >>Alert(Check) Current Alert Level: Low Security 01507_ R-06 Scavenger collects Sml. Storage Unit. 01535_ Acquired Imp. Datajack. 01581_ U-05 Engineer destroyed. 01585_ K-01 Serf collects debris. 01590_ K-01 Serf destroyed. 01599_ A:/QXLJ/|PKA>E,BGBLE9QEUJ 01603_ Acquired 30 matter. 01604_ Extracted 50 matter. 01617_ W-25 Informer destroyed. 01620_ Acquired 27 matter. 01622_ R-06 Scavenger collects Wheel. 01623_ Acquired Lgt. Deuterium Engine. 01625_ R-06 Scavenger collects Wheel. 01627_ Discarded Adv. Targeting Computer. 01628_ Acquired Imp. Signal Interpreter. 01629_ R-06 Scavenger collects Lgt. Ion Engine. 01632_ R-06 Scavenger collects Sml. Matter Pod. 01652_ EXIT=IDENTIFIED: FACTORY Map ----- +----------------------------------------------------+ | # ![ = #????# # # | | # [ #????# + " # | | # """ #????#### # "" # | | + """ #???????# #########+# """ # | | ! # """ #???????# # # """ # | | # ## #???????# # """ """ # # | | # ## " " #???????#|%* # """ """ # # | | # ## "R" #???????# = # """ """ ####### | | # ## """ #???????+ = + """ #?????? | | # ## #???????# # """ #?????? | | # #########???????## ### # #?????? | | # #????????????????# #?# # #?????? | | # #????????????????# #?# ###########?????? | | ? #????????????????# #?# #???????????????? | | ? ?????????????????# #?# ########????????? | | ? ?????????????????# #?# # #????????? | | ? ?????????????????# #?# # #????????? | | ? ?????????????????# #?# # ] #????????? | | ? ????????????######+### + #????????? | | ? ????????????# # # #????????? | | #?????????????# """ # # #????????? | | #?????????????# """ # ##+########?????? | | #?????????????# """ # #?????? | | #?????????????# + +?????? | | #?????????????# " # #?????? | | #?????????????# T # @ ##+##### #?????? | | #?????????????# " # # #? #?????? | | #?????????????# ##### +??#?????? | | ??????????????##########???# #????????? | | ???????????????????????????# """ #????????? | | ???????????????????????????# """ #????????? | | ???????????????????????????# """ #????????? | | ???????????????????????????########????????? | | | | | | | | | | | | | | | | | | | | | | | | | | | | | | | | | | | +----------------------------------------------------+ Best States ------------- Heat Dissipation 31 Energy Generation 23 Energy Capacity 380 Matter Stores 300 Matter Capacity 300 Sight Range 16 Terrain Scan Density 10 Evasion (%) 63 Targeting Accuracy 8 Recoil Reduction 5 Offensive Hacking 10 Item Schematics ----------------- None Robot Schematics ------------------ None Fabricated ------------ Nothing Alien Tech Used ----------------- None Achievements -------------- None Challenges ------------ None Game ------ Seed LightpackColdSteel Manual? 0 Play Time 00:10:48 Cumulative 111.5 hours Start 2024.04.21 @ 21:06:18 End 2024.04.22 @ 02:49:00 Sessions 1 Manual Loads 0 Difficulty Rogue Special Mode None Game No. 231 Rogue 231 Adventurer 0 Explorer 0 Win Type - Total 0 Types 0/0/0/0/0/0/0/0/0 Lore% 32 Gallery% 51 Achievement% 35 Wizard Run 0 Options --------- Layout 0 ASCII 0 Keyboard 0 Movement Numpad Keybinds 0 Fullscreen 2 Font 18/X11 Map View 76x50 Zoom Use 0% Tactical HUD 1 Map Filters NONE Filters NONE Steam 1 RUN: 2024828a-44ab-4c33-9049-afa2ded085ce